[Event "Titled Tuesday Blitz July 25 Early 2023"]
[White "Terry, Renato"]
[Black "djokovic74"]
[WhiteFideId "3803457"]
[WhiteElo "2953"]
[BlackElo "2752"]
[Result "1-0"]
[Round "6"]
[TimeControl "180+2"]
[Date "2023.07.25"]
[WhiteClock "0:00:07"]
[BlackClock "0:00:00"]
[Board "20"]

1. d4 {[%clk 0:03:00]}  e6 {[%clk 0:03:00]} 2. Nf3 {[%clk 0:03:01]}  Nf6 {[%clk 0:03:00]} 3. c4 {[%clk 0:03:01]}  Bb4+ {[%clk 0:03:00]} 4. Bd2 {[%clk 0:03:00]}  Qe7 {[%clk 0:03:00]} 5. Nc3 {[%clk 0:02:59]}  Nc6 {[%clk 0:02:58]} 6. Qc2 {[%clk 0:02:56]}  d5 {[%clk 0:02:40]} 7. e3 {[%clk 0:02:56]}  O-O {[%clk 0:02:39]} 8. a3 {[%clk 0:02:54]}  Bxc3 {[%clk 0:02:38]} 9. Bxc3 {[%clk 0:02:55]}  b6 {[%clk 0:02:25]} 10. cxd5 {[%clk 0:02:49]}  exd5 {[%clk 0:02:18]} 11. Bd2 {[%clk 0:02:49]}  Bb7 {[%clk 0:01:42]} 12. Bb5 {[%clk 0:02:48]}  Qd6 {[%clk 0:01:21]} 13. Rc1 {[%clk 0:02:46]}  Nd8 {[%clk 0:01:14]} 14. Bb4 {[%clk 0:02:44]}  c5 {[%clk 0:01:08]} 15. dxc5 {[%clk 0:02:44]}  Qe6 {[%clk 0:00:52]} 16. c6 {[%clk 0:02:44]}  Bc8 {[%clk 0:00:49]} 17. Bxf8 {[%clk 0:02:43]}  Kxf8 {[%clk 0:00:50]} 18. c7 {[%clk 0:02:40]}  Nb7 {[%clk 0:00:50]} 19. Qc6 {[%clk 0:02:28]}  Qd6 {[%clk 0:00:50]} 20. Nd4 {[%clk 0:02:25]}  a6 {[%clk 0:00:47]} 21. Bd3 {[%clk 0:02:16]}  Ke7 {[%clk 0:00:46]} 22. O-O {[%clk 0:02:09]}  g6 {[%clk 0:00:45]} 23. Rfe1 {[%clk 0:02:05]}  Nd7 {[%clk 0:00:45]} 24. e4 {[%clk 0:01:59]}  dxe4 {[%clk 0:00:46]} 25. Rxe4+ {[%clk 0:01:57]}  Kf8 {[%clk 0:00:46]} 26. Qxd6+ {[%clk 0:00:57]}  Nxd6 {[%clk 0:00:46]} 27. Ree1 {[%clk 0:00:57]}  Nc5 {[%clk 0:00:47]} 28. Bb1 {[%clk 0:00:56]}  Bb7 {[%clk 0:00:47]} 29. b4 {[%clk 0:00:57]}  Nd7 {[%clk 0:00:45]} 30. Nc6 {[%clk 0:00:57]}  Nf6 {[%clk 0:00:37]} 31. Nd8 {[%clk 0:00:45]}  Bc8 {[%clk 0:00:36]} 32. Rc6 {[%clk 0:00:40]}  Nfe8 {[%clk 0:00:36]} 33. Rxb6 {[%clk 0:00:40]}  Ra7 {[%clk 0:00:37]} 34. Rc6 {[%clk 0:00:36]}  Bd7 {[%clk 0:00:36]} 35. Rxe8+ {[%clk 0:00:21]}  Kxe8 {[%clk 0:00:30]} 36. Rc5 {[%clk 0:00:05]}  Bc8 {[%clk 0:00:30]} 37. a4 {[%clk 0:00:04]}  Kd7 {[%clk 0:00:30]} 38. Nc6 {[%clk 0:00:04]}  Rxc7 {[%clk 0:00:28]} 39. Ne5+ {[%clk 0:00:04]}  Kd8 {[%clk 0:00:28]} 40. Bd3 {[%clk 0:00:04]}  f6 {[%clk 0:00:21]} 41. Nc6+ {[%clk 0:00:04]}  Kd7 {[%clk 0:00:18]} 42. Nd4 {[%clk 0:00:04]}  Bb7 {[%clk 0:00:15]} 43. Rxc7+ {[%clk 0:00:04]}  Kxc7 {[%clk 0:00:15]} 44. f3 {[%clk 0:00:05]}  Kb6 {[%clk 0:00:14]} 45. a5+ {[%clk 0:00:04]}  Kc7 {[%clk 0:00:15]} 46. Kf2 {[%clk 0:00:05]}  Kd7 {[%clk 0:00:12]} 47. Ke3 {[%clk 0:00:05]}  Nf7 {[%clk 0:00:11]} 48. g3 {[%clk 0:00:03]}  Ne5 {[%clk 0:00:11]} 49. Be2 {[%clk 0:00:03]}  Kd6 {[%clk 0:00:09]} 50. f4 {[%clk 0:00:03]}  Nd7 {[%clk 0:00:09]} 51. Bc4 {[%clk 0:00:03]}  h6 {[%clk 0:00:05]} 52. Bd3 {[%clk 0:00:03]}  Nf8 {[%clk 0:00:03]} 53. Nb3 {[%clk 0:00:03]}  Ne6 {[%clk 0:00:01]} 54. Bxg6 {[%clk 0:00:03]}  Bd5 {[%clk 0:00:02]} 55. Nd4 {[%clk 0:00:04]}  Nc7 {[%clk 0:00:03]} 56. Nf5+ {[%clk 0:00:04]}  Kc6 {[%clk 0:00:03]} 57. Nd4+ {[%clk 0:00:04]}  Kd6 {[%clk 0:00:03]} 58. Bd3 {[%clk 0:00:05]}  h5 {[%clk 0:00:02]} 59. Be2 {[%clk 0:00:06]}  Bf7 {[%clk 0:00:03]} 60. Nf5+ {[%clk 0:00:06]}  Ke6 {[%clk 0:00:03]} 61. Ng7+ {[%clk 0:00:06]}  Kd6 {[%clk 0:00:03]} 62. Kd4 {[%clk 0:00:06]}  h4 {[%clk 0:00:01]} 63. gxh4 {[%clk 0:00:06]}  Ke7 {[%clk 0:00:02]} 64. Nf5+ {[%clk 0:00:06]}  Ke6 {[%clk 0:00:02]} 65. Ng7+ {[%clk 0:00:06]}  Kd6 {[%clk 0:00:03]} 66. h5 {[%clk 0:00:07]}  Ke7 {[%clk 0:00:01]} 67. h6 {[%clk 0:00:07]}  Bg6 {[%clk 0:00:02]} 68. Bc4 {[%clk 0:00:06]}  Kf8 {[%clk 0:00:02]} 69. Kc5 {[%clk 0:00:07]}  Be4 {[%clk 0:00:01]} 70. Ne6+ {[%clk 0:00:06]}  Nxe6+ {[%clk 0:00:01]} 71. Bxe6 {[%clk 0:00:06]}  Ke7 {[%clk 0:00:01]} 72. Bc4 {[%clk 0:00:06]}  Kf8 {[%clk 0:00:01]} 73. Bxa6 {[%clk 0:00:06]}  Kg8 {[%clk 0:00:02]} 74. b5 {[%clk 0:00:06]}  Kh7 {[%clk 0:00:02]} 75. b6 {[%clk 0:00:07]}  Kxh6 {[%clk 0:00:00]} 76. b7 {[%clk 0:00:07]} 1-0


[Site "https://www.chess.com"]

[Event "Titled Tuesday Blitz July 25 Early 2023"]
[White "Tari, Aryan"]
[Black "Klekowski, Maciej"]
[WhiteFideId "1510045"]
[BlackFideId "1132717"]
[WhiteElo "2915"]
[BlackElo "2743"]
[Result "1-0"]
[Round "6"]
[TimeControl "180+2"]
[Date "2023.07.25"]
[WhiteClock "0:00:17"]
[BlackClock "0:00:00"]
[Board "23"]

1. e4 {[%clk 0:03:00]}  c5 {[%clk 0:02:59]} 2. Nf3 {[%clk 0:02:59]}  e6 {[%clk 0:03:00]} 3. c3 {[%clk 0:02:58]}  Nf6 {[%clk 0:02:59]} 4. e5 {[%clk 0:02:58]}  Nd5 {[%clk 0:03:00]} 5. d4 {[%clk 0:02:59]}  cxd4 {[%clk 0:03:00]} 6. cxd4 {[%clk 0:03:00]}  Nc6 {[%clk 0:03:00]} 7. Bc4 {[%clk 0:02:59]}  d6 {[%clk 0:03:01]} 8. O-O {[%clk 0:02:59]}  Be7 {[%clk 0:03:01]} 9. Qe2 {[%clk 0:02:59]}  O-O {[%clk 0:03:01]} 10. Rd1 {[%clk 0:02:59]}  Na5 {[%clk 0:02:56]} 11. Bd3 {[%clk 0:02:55]}  Nb4 {[%clk 0:02:55]} 12. Nc3 {[%clk 0:02:41]}  Nxd3 {[%clk 0:02:53]} 13. Rxd3 {[%clk 0:02:42]}  b6 {[%clk 0:02:46]} 14. Qe4 {[%clk 0:02:31]}  Ba6 {[%clk 0:02:41]} 15. Rd1 {[%clk 0:02:14]}  d5 {[%clk 0:02:32]} 16. Qg4 {[%clk 0:02:12]}  Re8 {[%clk 0:02:05]} 17. h4 {[%clk 0:02:08]}  Qd7 {[%clk 0:01:56]} 18. h5 {[%clk 0:02:06]}  Bf8 {[%clk 0:01:53]} 19. h6 {[%clk 0:01:23]}  g6 {[%clk 0:01:52]} 20. Qh4 {[%clk 0:01:24]}  Rac8 {[%clk 0:01:39]} 21. Nh2 {[%clk 0:01:24]}  Be7 {[%clk 0:01:06]} 22. Bg5 {[%clk 0:01:22]}  Bxg5 {[%clk 0:01:07]} 23. Qxg5 {[%clk 0:01:23]}  Qe7 {[%clk 0:01:07]} 24. Qf4 {[%clk 0:01:18]}  Rc7 {[%clk 0:00:59]} 25. Ng4 {[%clk 0:01:18]}  Rec8 {[%clk 0:00:58]} 26. Nf6+ {[%clk 0:01:12]}  Kh8 {[%clk 0:00:59]} 27. Ncxd5 {[%clk 0:01:09]}  exd5 {[%clk 0:00:57]} 28. Nxd5 {[%clk 0:01:10]}  Qd8 {[%clk 0:00:50]} 29. Nxc7 {[%clk 0:01:08]}  Rxc7 {[%clk 0:00:51]} 30. d5 {[%clk 0:01:08]}  Rc4 {[%clk 0:00:24]} 31. Qxf7 {[%clk 0:01:06]}  Rc7 {[%clk 0:00:23]} 32. Qf3 {[%clk 0:01:03]}  Kg8 {[%clk 0:00:21]} 33. e6 {[%clk 0:00:55]}  Qd6 {[%clk 0:00:15]} 34. Rac1 {[%clk 0:00:54]}  Re7 {[%clk 0:00:16]} 35. b3 {[%clk 0:00:43]}  Bb7 {[%clk 0:00:16]} 36. Qf6 {[%clk 0:00:43]}  Ba6 {[%clk 0:00:08]} 37. Rc3 {[%clk 0:00:41]}  Nb7 {[%clk 0:00:06]} 38. Rf3 {[%clk 0:00:39]}  Rc7 {[%clk 0:00:05]} 39. Re3 {[%clk 0:00:28]}  Re7 {[%clk 0:00:04]} 40. b4 {[%clk 0:00:27]}  Nd8 {[%clk 0:00:04]} 41. Rc1 {[%clk 0:00:24]}  Bb7 {[%clk 0:00:03]} 42. Rf3 {[%clk 0:00:24]}  Re8 {[%clk 0:00:02]} 43. Rg3 {[%clk 0:00:20]}  Re7 {[%clk 0:00:00]} 44. Rg5 {[%clk 0:00:17]} 1-0


[Site "https://www.chess.com"]

[Event "Titled Tuesday Blitz July 25 Early 2023"]
[White "Gholami Orimi, Mahdi"]
[Black "Panesar Vedant"]
[WhiteFideId "12558486"]
[BlackFideId "35033018"]
[WhiteElo "2905"]
[BlackElo "2720"]
[Result "1-0"]
[Round "6"]
[TimeControl "180+2"]
[Date "2023.07.25"]
[WhiteClock "0:01:48"]
[BlackClock "0:02:00"]
[Board "24"]

1. d4 {[%clk 0:02:54]}  Nf6 {[%clk 0:02:53]} 2. Nf3 {[%clk 0:02:51]}  d5 {[%clk 0:02:52]} 3. Bf4 {[%clk 0:02:51]}  c5 {[%clk 0:02:52]} 4. e3 {[%clk 0:02:50]}  Nc6 {[%clk 0:02:53]} 5. Nbd2 {[%clk 0:02:48]}  Qb6 {[%clk 0:02:54]} 6. dxc5 {[%clk 0:02:47]}  Qxb2 {[%clk 0:02:54]} 7. Rb1 {[%clk 0:02:43]}  Qc3 {[%clk 0:02:55]} 8. Bb5 {[%clk 0:02:43]}  g6 {[%clk 0:02:53]} 9. O-O {[%clk 0:02:41]}  Bg7 {[%clk 0:02:51]} 10. Nb3 {[%clk 0:02:36]}  O-O {[%clk 0:02:49]} 11. Bxc6 {[%clk 0:02:33]}  bxc6 {[%clk 0:02:48]} 12. Be5 {[%clk 0:02:32]}  Qc4 {[%clk 0:02:45]} 13. Qd4 {[%clk 0:02:27]}  Qxd4 {[%clk 0:02:40]} 14. Nbxd4 {[%clk 0:02:28]}  a5 {[%clk 0:02:40]} 15. Nxc6 {[%clk 0:02:26]}  Ba6 {[%clk 0:02:37]} 16. Nxe7+ {[%clk 0:02:22]}  Kh8 {[%clk 0:02:37]} 17. Rfd1 {[%clk 0:02:23]}  Rfe8 {[%clk 0:02:37]} 18. Nxd5 {[%clk 0:02:14]}  Nxd5 {[%clk 0:02:33]} 19. Bxg7+ {[%clk 0:02:12]}  Kxg7 {[%clk 0:02:34]} 20. Rxd5 {[%clk 0:02:13]}  Bc4 {[%clk 0:02:33]} 21. Rd6 {[%clk 0:02:01]}  Bxa2 {[%clk 0:02:33]} 22. Ra1 {[%clk 0:02:01]}  Be6 {[%clk 0:02:33]} 23. Nd4 {[%clk 0:02:02]}  a4 {[%clk 0:02:32]} 24. Ra3 {[%clk 0:01:59]}  Bc4 {[%clk 0:02:23]} 25. f3 {[%clk 0:01:54]}  Rec8 {[%clk 0:02:16]} 26. c6 {[%clk 0:01:53]}  Ra6 {[%clk 0:02:15]} 27. e4 {[%clk 0:01:52]}  Kf8 {[%clk 0:02:12]} 28. Kf2 {[%clk 0:01:50]}  Ke7 {[%clk 0:02:13]} 29. Rd7+ {[%clk 0:01:48]}  Ke8 {[%clk 0:02:00]} 30. Rb7 {[%clk 0:01:48]} 1-0


[Site "https://www.chess.com"]

[Event "Titled Tuesday Blitz July 25 Early 2023"]
[White "Bernadskiy, Vitaliy"]
[Black "Koellner, Ruben Gideon"]
[WhiteFideId "14100371"]
[BlackFideId "12993093"]
[WhiteElo "2886"]
[BlackElo "2720"]
[Result "1-0"]
[Round "6"]
[TimeControl "180+2"]
[Date "2023.07.25"]
[WhiteClock "0:00:37"]
[BlackClock "0:00:19"]
[Board "25"]

1. d4 {[%clk 0:03:00]}  d6 {[%clk 0:03:00]} 2. e4 {[%clk 0:02:57]}  Nf6 {[%clk 0:03:00]} 3. f3 {[%clk 0:02:54]}  e5 {[%clk 0:02:58]} 4. dxe5 {[%clk 0:02:53]}  dxe5 {[%clk 0:02:58]} 5. Qxd8+ {[%clk 0:02:53]}  Kxd8 {[%clk 0:02:59]} 6. Bc4 {[%clk 0:02:53]}  Ke8 {[%clk 0:02:59]} 7. Be3 {[%clk 0:02:52]}  Nbd7 {[%clk 0:02:56]} 8. Nd2 {[%clk 0:02:50]}  Bc5 {[%clk 0:02:56]} 9. Kf2 {[%clk 0:02:50]}  Ke7 {[%clk 0:02:53]} 10. Ne2 {[%clk 0:02:49]}  Bxe3+ {[%clk 0:02:53]} 11. Kxe3 {[%clk 0:02:49]}  Nc5 {[%clk 0:02:52]} 12. a4 {[%clk 0:02:47]}  a5 {[%clk 0:02:51]} 13. Nc1 {[%clk 0:02:41]}  Be6 {[%clk 0:02:50]} 14. Nd3 {[%clk 0:02:40]}  Nxd3 {[%clk 0:02:50]} 15. cxd3 {[%clk 0:02:40]}  Rhd8 {[%clk 0:02:46]} 16. Rhc1 {[%clk 0:02:38]}  c6 {[%clk 0:02:46]} 17. Bxe6 {[%clk 0:02:35]}  Kxe6 {[%clk 0:02:47]} 18. Nb3 {[%clk 0:02:35]}  Nd7 {[%clk 0:02:41]} 19. d4 {[%clk 0:02:35]}  f6 {[%clk 0:02:39]} 20. Rc3 {[%clk 0:02:34]}  Ke7 {[%clk 0:02:35]} 21. Rd1 {[%clk 0:02:33]}  exd4+ {[%clk 0:02:31]} 22. Rxd4 {[%clk 0:02:14]}  Ne5 {[%clk 0:02:15]} 23. Rxd8 {[%clk 0:02:12]}  Kxd8 {[%clk 0:02:14]} 24. Nc5 {[%clk 0:02:05]}  Kc8 {[%clk 0:02:12]} 25. Ne6 {[%clk 0:01:57]}  Kd7 {[%clk 0:02:02]} 26. Nc5+ {[%clk 0:01:48]}  Kc7 {[%clk 0:02:02]} 27. f4 {[%clk 0:01:48]}  Nd7 {[%clk 0:01:59]} 28. Ne6+ {[%clk 0:01:47]}  Kb6 {[%clk 0:01:50]} 29. Rb3+ {[%clk 0:01:33]}  Ka7 {[%clk 0:01:50]} 30. Rd3 {[%clk 0:01:34]}  Nb6 {[%clk 0:01:50]} 31. Nxg7 {[%clk 0:01:25]}  Rg8 {[%clk 0:01:47]} 32. Nh5 {[%clk 0:01:16]}  Rxg2 {[%clk 0:01:32]} 33. Nxf6 {[%clk 0:01:16]}  Nc4+ {[%clk 0:01:32]} 34. Kf3 {[%clk 0:00:59]}  Rxh2 {[%clk 0:01:26]} 35. e5 {[%clk 0:00:54]}  Nd2+ {[%clk 0:00:58]} 36. Rxd2 {[%clk 0:00:43]}  Rxd2 {[%clk 0:00:58]} 37. e6 {[%clk 0:00:44]}  Rd3+ {[%clk 0:00:45]} 38. Ke4 {[%clk 0:00:40]}  Rd1 {[%clk 0:00:30]} 39. Ke5 {[%clk 0:00:37]}  Re1+ {[%clk 0:00:28]} 40. Ne4 {[%clk 0:00:37]}  Rg1 {[%clk 0:00:28]} 41. f5 {[%clk 0:00:37]}  Kb6 {[%clk 0:00:28]} 42. e7 {[%clk 0:00:36]}  Rg8 {[%clk 0:00:19]} 43. f6 {[%clk 0:00:37]} 1-0


[Site "https://www.chess.com"]

[Event "Titled Tuesday Blitz July 25 Early 2023"]
[White "Kezin, Roman"]
[Black "ArtemDyachuk"]
[WhiteFideId "24124621"]
[WhiteElo "2836"]
[BlackElo "2614"]
[Result "1-0"]
[Round "6"]
[TimeControl "180+2"]
[Date "2023.07.25"]
[WhiteClock "0:00:36"]
[BlackClock "0:00:18"]
[Board "32"]

1. e4 {[%clk 0:02:59]}  c6 {[%clk 0:02:59]} 2. d3 {[%clk 0:03:00]}  d5 {[%clk 0:02:57]} 3. Nf3 {[%clk 0:02:58]}  Qc7 {[%clk 0:02:57]} 4. Nc3 {[%clk 0:02:49]}  Nf6 {[%clk 0:02:57]} 5. e5 {[%clk 0:02:46]}  Nfd7 {[%clk 0:02:57]} 6. d4 {[%clk 0:02:45]}  e6 {[%clk 0:02:57]} 7. Ne2 {[%clk 0:02:39]}  c5 {[%clk 0:02:56]} 8. c3 {[%clk 0:02:38]}  Nc6 {[%clk 0:02:56]} 9. a3 {[%clk 0:02:11]}  Be7 {[%clk 0:02:50]} 10. h4 {[%clk 0:02:05]}  h6 {[%clk 0:02:42]} 11. Nf4 {[%clk 0:02:01]}  cxd4 {[%clk 0:02:34]} 12. cxd4 {[%clk 0:02:02]}  a6 {[%clk 0:02:35]} 13. Bd3 {[%clk 0:02:01]}  b5 {[%clk 0:02:33]} 14. Rh3 {[%clk 0:01:53]}  Bb7 {[%clk 0:02:31]} 15. Rg3 {[%clk 0:01:53]}  g5 {[%clk 0:02:18]} 16. Nh5 {[%clk 0:01:45]}  O-O-O {[%clk 0:02:15]} 17. Be3 {[%clk 0:01:37]}  gxh4 {[%clk 0:02:00]} 18. Rg7 {[%clk 0:01:35]}  Rhg8 {[%clk 0:02:00]} 19. Rxf7 {[%clk 0:01:24]}  Rxg2 {[%clk 0:01:54]} 20. Rc1 {[%clk 0:01:24]}  Bg5 {[%clk 0:01:23]} 21. Bxg5 {[%clk 0:01:10]}  hxg5 {[%clk 0:01:23]} 22. Kf1 {[%clk 0:01:11]}  h3 {[%clk 0:01:18]} 23. Ng7 {[%clk 0:01:09]}  g4 {[%clk 0:01:01]} 24. Nh4 {[%clk 0:01:07]}  Rh8 {[%clk 0:00:50]} 25. Nxe6 {[%clk 0:01:05]}  Qb6 {[%clk 0:00:45]} 26. Bh7 {[%clk 0:00:51]}  Nxe5 {[%clk 0:00:19]} 27. dxe5 {[%clk 0:00:34]}  Rxh7 {[%clk 0:00:19]} 28. Rf8+ {[%clk 0:00:35]}  Kd7 {[%clk 0:00:19]} 29. Qxd5+ {[%clk 0:00:35]}  Ke7 {[%clk 0:00:18]} 30. Qd6# {[%clk 0:00:36]} 1-0


[Site "https://www.chess.com"]

[Event "Titled Tuesday Blitz July 25 Early 2023"]
[White "Yaran, Siar"]
[Black "Bachmann, Axel"]
[WhiteFideId "6323006"]
[BlackFideId "3700488"]
[WhiteElo "2606"]
[BlackElo "2825"]
[Result "1-0"]
[Round "6"]
[TimeControl "180+2"]
[Date "2023.07.25"]
[WhiteClock "0:00:17"]
[BlackClock "0:00:00"]
[Board "34"]

1. d4 {[%clk 0:03:00]}  g6 {[%clk 0:00:28]} 2. c4 {[%clk 0:02:59]}  Bg7 {[%clk 0:00:29]} 3. Nc3 {[%clk 0:03:00]}  d6 {[%clk 0:00:29]} 4. e4 {[%clk 0:03:00]}  e5 {[%clk 0:00:30]} 5. Nf3 {[%clk 0:02:59]}  exd4 {[%clk 0:00:30]} 6. Nxd4 {[%clk 0:03:00]}  Nc6 {[%clk 0:00:31]} 7. Nxc6 {[%clk 0:03:00]}  bxc6 {[%clk 0:00:31]} 8. Be2 {[%clk 0:02:56]}  Ne7 {[%clk 0:00:31]} 9. O-O {[%clk 0:02:55]}  Rb8 {[%clk 0:00:32]} 10. Qc2 {[%clk 0:02:52]}  O-O {[%clk 0:00:32]} 11. Rd1 {[%clk 0:02:52]}  c5 {[%clk 0:00:32]} 12. Be3 {[%clk 0:02:24]}  Bd7 {[%clk 0:00:32]} 13. Rab1 {[%clk 0:01:56]}  Nc6 {[%clk 0:00:22]} 14. Bf1 {[%clk 0:01:56]}  Nd4 {[%clk 0:00:22]} 15. Qd2 {[%clk 0:01:55]}  f5 {[%clk 0:00:22]} 16. Bg5 {[%clk 0:01:50]}  Qe8 {[%clk 0:00:18]} 17. exf5 {[%clk 0:01:38]}  Bxf5 {[%clk 0:00:19]} 18. Rbc1 {[%clk 0:01:38]}  Qf7 {[%clk 0:00:19]} 19. b3 {[%clk 0:01:32]}  Bd7 {[%clk 0:00:16]} 20. Nd5 {[%clk 0:01:20]}  Bc6 {[%clk 0:00:16]} 21. Ne7+ {[%clk 0:01:18]}  Kh8 {[%clk 0:00:17]} 22. Nxc6 {[%clk 0:01:18]}  Nxc6 {[%clk 0:00:18]} 23. Re1 {[%clk 0:01:16]}  Rbe8 {[%clk 0:00:17]} 24. Rxe8 {[%clk 0:01:15]}  Rxe8 {[%clk 0:00:18]} 25. Re1 {[%clk 0:01:15]}  Ne5 {[%clk 0:00:17]} 26. Re3 {[%clk 0:00:56]}  Rf8 {[%clk 0:00:17]} 27. Qe1 {[%clk 0:00:51]}  h6 {[%clk 0:00:16]} 28. Bh4 {[%clk 0:00:51]}  Qf5 {[%clk 0:00:12]} 29. Bg3 {[%clk 0:00:49]}  Qc2 {[%clk 0:00:12]} 30. Re2 {[%clk 0:00:48]}  Qf5 {[%clk 0:00:13]} 31. Re3 {[%clk 0:00:47]}  Rf7 {[%clk 0:00:11]} 32. h3 {[%clk 0:00:46]}  g5 {[%clk 0:00:10]} 33. Qd2 {[%clk 0:00:36]}  a6 {[%clk 0:00:09]} 34. Qd5 {[%clk 0:00:34]}  h5 {[%clk 0:00:08]} 35. h4 {[%clk 0:00:31]}  gxh4 {[%clk 0:00:08]} 36. Bxh4 {[%clk 0:00:31]}  Qg6 {[%clk 0:00:05]} 37. Rg3 {[%clk 0:00:29]}  Qf5 {[%clk 0:00:05]} 38. Rg5 {[%clk 0:00:26]}  Qf4 {[%clk 0:00:03]} 39. Rxh5+ {[%clk 0:00:24]}  Kg8 {[%clk 0:00:04]} 40. Bg3 {[%clk 0:00:24]}  Qc1 {[%clk 0:00:05]} 41. Rf5 {[%clk 0:00:20]}  c6 {[%clk 0:00:02]} 42. Qe6 {[%clk 0:00:19]}  Qe1 {[%clk 0:00:00]} 43. Bxe5 {[%clk 0:00:17]} 1-0


[Site "https://www.chess.com"]

[Event "Titled Tuesday Blitz July 25 Early 2023"]
[White "Ashraf, Artin"]
[Black "Zavgorodniy, Sergiy"]
[WhiteFideId "22514805"]
[BlackFideId "14110148"]
[WhiteElo "2805"]
[BlackElo "2575"]
[Result "1-0"]
[Round "6"]
[TimeControl "180+2"]
[Date "2023.07.25"]
[WhiteClock "0:00:08"]
[BlackClock "0:00:00"]
[Board "35"]

1. c4 {[%clk 0:03:00]}  Nf6 {[%clk 0:02:59]} 2. Nc3 {[%clk 0:03:00]}  d6 {[%clk 0:02:59]} 3. d4 {[%clk 0:02:53]}  Nbd7 {[%clk 0:02:58]} 4. e4 {[%clk 0:02:50]}  e5 {[%clk 0:02:55]} 5. Nf3 {[%clk 0:02:51]}  Be7 {[%clk 0:02:55]} 6. Be2 {[%clk 0:02:44]}  O-O {[%clk 0:02:55]} 7. O-O {[%clk 0:02:45]}  c6 {[%clk 0:02:53]} 8. d5 {[%clk 0:02:30]}  Nc5 {[%clk 0:02:40]} 9. Qc2 {[%clk 0:02:29]}  cxd5 {[%clk 0:02:38]} 10. cxd5 {[%clk 0:02:29]}  Qc7 {[%clk 0:02:39]} 11. Qb1 {[%clk 0:02:13]}  Bd7 {[%clk 0:02:36]} 12. Bd2 {[%clk 0:01:59]}  Rac8 {[%clk 0:02:11]} 13. Rc1 {[%clk 0:01:58]}  Qb8 {[%clk 0:02:11]} 14. Ne1 {[%clk 0:01:52]}  b5 {[%clk 0:02:06]} 15. b4 {[%clk 0:01:49]}  Na4 {[%clk 0:02:06]} 16. Nxa4 {[%clk 0:01:48]}  bxa4 {[%clk 0:02:07]} 17. Be3 {[%clk 0:01:45]}  Ng4 {[%clk 0:01:59]} 18. Bxg4 {[%clk 0:01:42]}  Bxg4 {[%clk 0:01:58]} 19. b5 {[%clk 0:01:21]}  Bd7 {[%clk 0:01:45]} 20. Rc6 {[%clk 0:01:21]}  Bxc6 {[%clk 0:01:36]} 21. dxc6 {[%clk 0:01:10]}  a6 {[%clk 0:01:33]} 22. b6 {[%clk 0:01:09]}  Rxc6 {[%clk 0:01:33]} 23. Qb4 {[%clk 0:01:01]}  Qb7 {[%clk 0:01:24]} 24. Qxa4 {[%clk 0:00:46]}  Rfc8 {[%clk 0:01:23]} 25. Nd3 {[%clk 0:00:41]}  Rc4 {[%clk 0:01:18]} 26. Qb3 {[%clk 0:00:38]}  Rxe4 {[%clk 0:01:13]} 27. Nb4 {[%clk 0:00:21]}  Rxb4 {[%clk 0:00:43]} 28. Qxb4 {[%clk 0:00:22]}  d5 {[%clk 0:00:44]} 29. Qb3 {[%clk 0:00:23]}  d4 {[%clk 0:00:42]} 30. Bd2 {[%clk 0:00:23]}  h6 {[%clk 0:00:31]} 31. a4 {[%clk 0:00:22]}  e4 {[%clk 0:00:25]} 32. a5 {[%clk 0:00:21]}  Bc5 {[%clk 0:00:25]} 33. Rc1 {[%clk 0:00:21]}  Be7 {[%clk 0:00:09]} 34. Re1 {[%clk 0:00:20]}  Kf8 {[%clk 0:00:05]} 35. Bf4 {[%clk 0:00:20]}  f5 {[%clk 0:00:05]} 36. Qe6 {[%clk 0:00:18]}  Rc5 {[%clk 0:00:03]} 37. Be5 {[%clk 0:00:15]}  Qc8 {[%clk 0:00:02]} 38. Qxc8+ {[%clk 0:00:15]}  Rxc8 {[%clk 0:00:01]} 39. b7 {[%clk 0:00:16]}  Rd8 {[%clk 0:00:02]} 40. b8=Q {[%clk 0:00:09]}  Rxb8 {[%clk 0:00:03]} 41. Bxb8 {[%clk 0:00:10]}  Bb4 {[%clk 0:00:03]} 42. Rd1 {[%clk 0:00:08]}  d3 {[%clk 0:00:02]} 43. Kf1 {[%clk 0:00:08]}  Kf7 {[%clk 0:00:02]} 44. Be5 {[%clk 0:00:07]}  g6 {[%clk 0:00:01]} 45. Rc1 {[%clk 0:00:08]}  Ke6 {[%clk 0:00:00]} 46. Bc3 {[%clk 0:00:08]} 1-0


[Site "https://www.chess.com"]

[Event "Titled Tuesday Blitz July 25 Early 2023"]
[White "Andreikin, Dmitry"]
[Black "Suyarov, Mukhammadzokhid"]
[WhiteFideId "4158814"]
[BlackFideId "14210495"]
[WhiteElo "3022"]
[BlackElo "2733"]
[Result "1-0"]
[Round "6"]
[TimeControl "180+2"]
[Date "2023.07.25"]
[WhiteClock "0:00:31"]
[BlackClock "0:01:52"]
[Board "36"]

1. e4 {[%clk 0:03:00]}  e6 {[%clk 0:02:58]} 2. d4 {[%clk 0:02:59]}  d5 {[%clk 0:02:58]} 3. Nc3 {[%clk 0:02:59]}  Nf6 {[%clk 0:02:58]} 4. e5 {[%clk 0:02:57]}  Nfd7 {[%clk 0:02:59]} 5. f4 {[%clk 0:02:58]}  c5 {[%clk 0:02:59]} 6. Nf3 {[%clk 0:02:58]}  Nc6 {[%clk 0:03:00]} 7. Be3 {[%clk 0:02:58]}  Qb6 {[%clk 0:03:00]} 8. Na4 {[%clk 0:02:58]}  Qa5+ {[%clk 0:03:01]} 9. c3 {[%clk 0:02:58]}  b6 {[%clk 0:03:01]} 10. Bd2 {[%clk 0:02:54]}  c4 {[%clk 0:03:01]} 11. b4 {[%clk 0:02:54]}  Nxb4 {[%clk 0:03:00]} 12. cxb4 {[%clk 0:02:54]}  Bxb4 {[%clk 0:03:01]} 13. Qc2 {[%clk 0:02:41]}  Bxd2+ {[%clk 0:03:00]} 14. Nxd2 {[%clk 0:02:41]}  b5 {[%clk 0:03:01]} 15. Nc3 {[%clk 0:02:35]}  O-O {[%clk 0:03:01]} 16. Be2 {[%clk 0:02:31]}  b4 {[%clk 0:02:59]} 17. Nd1 {[%clk 0:02:30]}  Qb6 {[%clk 0:02:59]} 18. Nf3 {[%clk 0:02:30]}  f6 {[%clk 0:02:59]} 19. exf6 {[%clk 0:02:26]}  gxf6 {[%clk 0:02:53]} 20. O-O {[%clk 0:02:23]}  a5 {[%clk 0:02:52]} 21. Ne3 {[%clk 0:02:20]}  f5 {[%clk 0:02:51]} 22. Kh1 {[%clk 0:02:05]}  Kh8 {[%clk 0:02:47]} 23. g4 {[%clk 0:01:56]}  Nf6 {[%clk 0:02:44]} 24. g5 {[%clk 0:01:12]}  Ne4 {[%clk 0:02:43]} 25. Bd1 {[%clk 0:01:11]}  Ba6 {[%clk 0:02:40]} 26. Qg2 {[%clk 0:01:09]}  Rg8 {[%clk 0:02:38]} 27. Bc2 {[%clk 0:01:04]}  Raf8 {[%clk 0:02:38]} 28. Rad1 {[%clk 0:00:44]}  c3 {[%clk 0:02:32]} 29. Rg1 {[%clk 0:00:43]}  Qb5 {[%clk 0:02:28]} 30. Bxe4 {[%clk 0:00:38]}  fxe4 {[%clk 0:02:27]} 31. Ne5 {[%clk 0:00:39]}  Rxf4 {[%clk 0:02:25]} 32. g6 {[%clk 0:00:39]}  Rg7 {[%clk 0:01:52]} 33. Nf7+ {[%clk 0:00:31]} 1-0


[Site "https://www.chess.com"]